bitfinex-derivatives/quotes_ETHF0:USTF0_20220106
["timestamp","ask_amount","ask_price","bid_price","bid_amount"]
[1641462412353,7.47214646,3342.0,3341.3,0.132394]
[1641462412853,1.54750106,3341.4,3341.3,0.132394]
[1641462413052,1.54750106,3341.4,3341.3,0.362385]
[1641462413753,2.41510906,3341.4,3341.3,4.00958]
[1641462414154,2.47089506,3341.4,3341.3,4.00958]
[1641462414554,1.000002,3341.4,3341.0,1.69080202]
[1641462415154,4.788698,3341.3,3341.0,1.69080202]
[1641462415356,3.9977,3341.3,3341.0,1.69080202]
[1641462415555,2.33850106,3341.4,3340.6,1.49621308]
[1641462415758,4.34329106,3341.4,3340.7,2.00479]
[1641462416357,4.34329106,3341.4,3340.8,0.132394]
[1641462416758,4.34329106,3341.4,3340.8,12.842394]
[1641462416959,1.54750106,3341.3,3340.9,1.49609668]
[1641462417160,1.54750106,3341.3,3341.0,12.842394]
[1641462417358,1.36120106,3341.3,3341.1,0.229991]
[1641462417758,1.36120106,3341.3,3341.2,2.137184]
[1641462418058,7.47214646,3342.0,3341.2,2.00479]
[1641462418260,0.92869682,3341.3,3341.2,2.00479]
[1641462419057,0.92869682,3341.3,3341.0,1.35277004]
[1641462419457,0.658,3341.4,3341.0,1.35277004]
[1641462419858,0.658,3341.4,3340.7,2.00479]
[1641462419859,3.90105243,3341.4,3340.8,1.35277004]
[1641462420059,3.90105243,3341.4,3340.9,12.71]
[1641462420259,3.90105243,3341.4,3340.8,1.48516404]
[1641462420458,3.90105243,3341.4,3341.3,0.8137]
[1641462420863,4.16279,3341.4,3341.3,0.8137]
[1641462421061,2.66279,3341.4,3340.7,2.00479]
[1641462421461,1.4967864,3341.3,3340.3,0.36235004]
[1641462421865,2.00479,3341.0,3340.3,0.36235004]
[1641462422066,2.00479,3341.0,3340.1,10.60025004]
[1641462422263,2.00479,3341.0,3339.9,2.00479]
[1641462422764,2.00479,3341.0,3340.0,12.91]
[1641462422963,2.00479,3341.0,3340.4,14.21]
[1641462423165,2.00479,3341.0,3340.5,0.132394]
[1641462423965,2.00479,3341.0,3340.5,1.632394]
[1641462424167,2.32036229,3341.5,3340.9,15.70608997]
[1641462424369,2.32036229,3341.5,3341.4,15.70562231]
[1641462424567,2.32036229,3341.5,3341.4,15.93561331]
[1641462424769,2.32036229,3341.5,3341.4,16.06800731]
[1641462424969,2.32036229,3341.8,3341.4,16.06800731]
[1641462425168,2.32036229,3341.8,3341.7,12.71]
[1641462425368,2.32036229,3341.8,3341.7,0.229991]
[1641462425770,2.32036229,3341.8,3341.7,4.239571]
[1641462426170,2.32036229,3341.8,3341.7,5.739571]
[1641462426468,2.32239837,3342.7,3341.7,18.449571]
[1641462426469,1.477,3342.7,3341.7,18.449571]
[1641462426668,1.477,3342.7,3341.9,1.5]
[1641462426870,1.477,3342.7,3342.0,0.132394]
[1641462427770,1.54832935,3342.5,3342.0,0.132394]
[1641462427970,1.54832935,3342.5,3342.2,2.00479]
[1641462428170,1.54832935,3342.5,3342.3,0.132394]
[1641462428670,1.54832935,3342.4,3342.3,0.132394]
[1641462429373,1.54832935,3342.4,3342.3,0.362385]
[1641462429771,1.54832935,3342.4,3342.3,0.132394]
[1641462430171,1.54832935,3342.4,3342.3,0.01732953]
[1641462430673,1.54832935,3342.4,3342.2,2.00479]
[1641462430674,3.04460288,3342.4,3341.1,2.02937006]
[1641462430872,1.5,3341.7,3341.1,2.02937006]
[1641462431175,4.903476,3341.6,3341.1,2.02937006]
[1641462431973,2.00479,3341.2,3341.1,2.02937006]
[1641462432374,2.119854,3341.2,3341.1,2.02937006]
[1641462432975,3.619854,3341.2,3340.5,4.64954724]
[1641462433176,1.5,3340.6,3340.0,5.23267194]
[1641462433374,1.5,3340.6,3340.0,5.03267194]
[1641462433375,0.115064,3340.5,3340.0,5.03267194]
[1641462433576,0.115064,3340.5,3339.5,5.72311989]
[1641462433577,1.5,3340.1,3339.5,5.72311989]
[1641462433777,0.115064,3340.0,3339.5,5.72311989]
[1641462433976,2.00479,3339.6,3339.5,5.72311989]
[1641462434176,2.81769,3339.6,3339.5,5.72311989]
[1641462434376,2.932754,3339.6,3339.5,5.72311989]
[1641462434778,2.932754,3339.6,3338.7,3.50187443]
[1641462436380,2.932754,3339.6,3338.7,2.00479]
[1641462437379,2.81769,3339.6,3338.7,2.00479]
[1641462437579,2.81769,3339.6,3339.1,1.49688946]
[1641462437778,2.00479,3339.6,3339.2,0.132394]
[1641462438578,2.00479,3339.6,3338.7,2.00479]
[1641462438779,2.62679,3339.6,3338.7,2.00479]
[1641462439579,4.791638,3339.5,3338.6,1.34597512]
[1641462439780,1.5,3339.3,3338.6,1.34597512]
[1641462439982,4.00958,3338.7,3338.2,1.34597512]
[1641462440182,4.59928,3338.7,3338.2,1.34597512]
[1641462440580,4.59928,3338.7,3338.2,1.47836912]
[1641462440981,0.5897,3338.7,3338.2,1.47836912]
[1641462441183,4.59928,3339.2,3338.2,1.47836912]
[1641462441384,2.32036229,3340.1,3338.5,1.5]
[1641462441385,1.49747675,3339.7,3338.5,1.5]
[1641462441586,1.49747675,3339.7,3338.2,0.132394]
[1641462441782,4.79171,3339.6,3338.2,0.132394]
[1641462441982,4.00958,3339.2,3338.2,0.132394]
[1641462442282,4.792284,3339.1,3338.6,1.5]
[1641462442483,4.792284,3339.1,3339.0,15.70683345]
[1641462442789,4.00958,3339.2,3339.0,15.93682445]
[1641462442983,0.63450786,3339.6,3339.1,0.132394]
[1641462443185,0.115064,3339.5,3338.5,1.49719426]
[1641462443683,0.115064,3339.5,3339.4,1.5]
[1641462443883,0.7688,3339.7,3339.4,1.729991]
[1641462444087,0.7688,3339.7,3339.4,1.5]
[1641462444285,0.7688,3339.7,3339.5,1.5]
[1641462444685,0.7688,3339.7,3339.6,0.229991]
[1641462445789,0.7688,3339.7,3339.6,14.439991]
[1641462445992,32.4992,3341.1,3339.6,17.94131652]
[1641462446190,8.07462898,3341.5,3340.5,1.5]
[1641462446389,3.07150678,3341.2,3340.5,2.505991]
[1641462446591,3.07150678,3341.2,3340.5,15.348385]
[1641462446790,3.07150678,3341.2,3340.5,16.84466525]
[1641462446990,4.22956756,3341.7,3340.5,15.348385]
[1641462447190,4.22956756,3341.7,3341.2,1.5]
[1641462447391,0.84554187,3341.8,3341.3,0.132394]
[1641462447590,0.96060587,3341.8,3341.3,0.132394]
[1641462447992,0.96060587,3341.8,3341.7,4.00958]
[1641462448592,3.84506142,3342.6,3341.7,4.239571]
[1641462448794,0.63406264,3342.7,3341.7,4.00958]
[1641462449194,4.787265,3342.6,3341.7,4.00958]
[1641462449692,0.63406264,3342.7,3342.5,1.5]
[1641462449892,2.30735239,3342.7,3342.6,3.234781]
[1641462450094,2.30735239,3342.7,3342.6,1.20579176]
[1641462450693,2.30735239,3342.7,3342.6,1.28239976]
[1641462450895,2.53734339,3342.7,3342.6,1.20579176]
[1641462451494,1.76937938,3342.7,3342.4,0.50565308]
[1641462451698,1.53938838,3342.7,3342.4,0.50565308]
[1641462451896,0.229991,3342.6,3342.4,0.50565308]
[1641462452192,0.115064,3342.5,3342.4,0.50565308]
[1641462453193,0.115064,3342.5,3342.4,5.308e-05]
[1641462453995,0.115064,3342.5,3341.5,1.5]
[1641462454395,0.0008,3342.2,3341.5,1.5]
[1641462454596,0.115064,3342.1,3341.6,1.5]
[1641462454796,2.30735239,3342.8,3341.2,1.5]
[1641462454997,2.30735239,3342.8,3342.5,1.0]
[1641462455197,0.345055,3342.7,3342.1,1.5]
[1641462455397,5.131676,3342.7,3341.1,14.2060273]
[1641462455597,0.6236,3342.6,3341.2,1.5]
[1641462455797,0.9221761,3341.8,3341.2,1.5]
[1641462455998,0.9221761,3341.8,3341.4,2.00479]
[1641462456197,1.0372401,3341.8,3341.4,2.00479]
[1641462456999,1.0372401,3341.8,3340.1,1.00892964]
[1641462457198,1.49665871,3341.5,3340.2,1.5]
[1641462457399,2.27315871,3341.5,3340.2,1.5]
[1641462457601,4.7892,3341.4,3340.2,1.5]
[1641462458002,2.00479,3340.5,3340.2,1.5]
[1641462458202,0.345055,3340.4,3340.2,1.5]
[1641462458402,5.134972,3340.4,3340.2,1.5]
[1641462460004,4.134972,3340.4,3340.2,1.5]
[1641462460605,2.87119,3340.5,3340.2,1.5]
[1641462460606,2.87119,3340.5,3340.3,0.229991]
[1641462460808,2.00479,3340.5,3340.4,1.5]
[1641462461007,2.00479,3340.5,3340.3,1.729991]
[1641462461207,2.00479,3340.5,3340.3,1.862385]
[1641462461606,2.00479,3340.5,3340.4,0.076608]
[1641462461808,0.9221761,3340.6,3340.4,0.076608]
[1641462462008,0.9221761,3340.6,3340.4,13.600308]
[1641462462208,1.22956813,3340.8,3340.5,14.33866529]
[1641462462409,0.9221761,3341.0,3340.7,15.70612802]
[1641462462808,0.9221761,3341.0,3340.8,0.132394]
[1641462463409,0.9221761,3341.0,3340.9,0.076608]
[1641462463910,1.22956813,3341.2,3340.9,1.576608]
[1641462464110,0.9221761,3341.6,3341.2,12.71]
[1641462464511,0.9221761,3341.6,3341.5,14.2057364]
[1641462464710,0.9221761,3341.6,3341.5,14.286608]
[1641462464911,0.9221761,3341.6,3341.5,12.786608]
[1641462465211,0.9221761,3341.6,3341.5,0.076608]
[1641462465410,0.9221761,3341.6,3341.1,12.71]
[1641462465411,1.1521671,3341.6,3341.1,12.71]
[1641462465612,0.132394,3341.5,3341.1,12.71]
[1641462466012,0.132394,3341.5,3341.4,2.00479]
[1641462466212,0.132394,3341.5,3341.4,2.081398]
[1641462466415,0.9221761,3341.9,3341.5,12.71]
[1641462466617,0.9221761,3341.9,3341.4,3.50068303]
[1641462466814,0.4343761,3341.9,3341.7,1.5]
[1641462467016,1.22956813,3342.2,3341.8,1.49562231]
[1641462467213,1.22956813,3342.2,3342.1,12.71]
[1641462467416,0.8453982,3342.5,3342.1,12.786608]
[1641462467717,0.8453982,3342.5,3342.1,0.209002]
[1641462467916,0.8453982,3342.5,3341.8,1.49562231]
[1641462468118,0.8453982,3342.5,3342.0,2.00479]
[1641462468316,0.132394,3342.4,3342.0,2.00479]
[1641462469918,3.50086654,3342.8,3342.5,0.783706]
[1641462470117,0.229991,3342.7,3342.5,6e-06]
[1641462470319,1.5,3342.6,3342.5,6e-06]
[1641462470519,4.786692,3342.6,3342.5,6e-06]
[1641462470719,4.786692,3342.6,3341.4,2.00479]
[1641462471120,4.787552,3342.7,3341.4,2.00479]
[1641462471320,4.787552,3342.5,3341.4,2.00479]
[1641462471721,4.78748,3342.7,3341.4,2.00479]
[1641462472122,3.50479,3342.3,3341.4,2.00479]
[1641462473320,0.6340599,3342.2,3341.4,2.00479]
[1641462475224,0.6340599,3342.2,3341.0,1.0]
[1641462475225,1.5,3341.5,3341.0,1.0]
[1641462475424,0.8211,3341.5,3341.0,1.0]
[1641462476022,2.00479,3341.1,3341.0,1.0]
[1641462476222,2.234781,3341.1,3341.0,1.0]
[1641462477225,3.734781,3341.1,3341.0,1.0]
[1641462477422,3.734781,3341.1,3339.9,2.00479]
[1641462477621,8.523694,3341.1,3339.3,1.49691859]
[1641462478023,8.523694,3341.1,3339.3,3.50170859]
[1641462478024,2.00479,3340.1,3339.3,3.50170859]
[1641462478225,2.86239,3340.1,3339.4,0.132394]
[1641462478826,2.86239,3340.1,3339.3,2.00479]
[1641462479125,4.36239,3340.1,3339.3,2.00479]
[1641462479325,4.790849,3340.0,3339.3,2.00279]
[1641462480124,2.86239,3340.1,3339.4,0.132394]
[1641462480326,2.00479,3340.1,3339.9,1.5]
[1641462480524,2.00479,3340.4,3340.0,1.70555992]
[1641462480725,2.00479,3340.4,3340.0,1.49655792]
[1641462480925,2.00479,3340.4,3339.9,9.78015792]
[1641462481126,2.00479,3340.4,3340.0,0.132394]
[1641462481327,2.00479,3340.4,3339.8,10.0]
[1641462481526,2.00479,3340.4,3339.9,0.132394]
[1641462481927,2.00479,3340.4,3340.1,1.49645042]
[1641462482127,2.00479,3340.4,3340.2,0.076608]
[1641462482329,0.229991,3340.3,3340.1,1.49645042]
[1641462482527,0.229991,3340.3,3339.8,10.0]
[1641462482730,0.132394,3340.2,3339.8,10.0]
[1641462483534,1.5,3340.1,3339.8,10.0]
[1641462483734,1.5,3339.9,3339.8,10.0]
[1641462483931,1.5,3339.9,3338.6,1.34523773]
[1641462484134,2.00479,3339.2,3338.6,1.34523773]
[1641462484332,0.132394,3339.1,3338.6,1.34523773]
[1641462485134,2.00479,3339.2,3338.6,1.34523773]
[1641462485334,2.00479,3339.2,3338.7,0.132394]
[1641462488036,2.00479,3339.2,3338.8,1.49702616]
[1641462488237,2.00479,3339.2,3338.9,0.132394]
[1641462488437,0.9187211,3340.1,3339.0,1.576608]
[1641462488737,0.9187211,3340.1,3339.3,1.5]
[1641462488939,0.9187211,3340.1,3339.4,0.132394]
[1641462489539,4.57415394,3341.4,3339.4,0.132394]
[1641462489540,0.9187211,3340.7,3339.4,0.132394]
[1641462490141,2.9235111,3340.7,3339.9,2.00479]
[1641462490341,0.132394,3340.6,3340.0,0.132394]
[1641462490539,0.132394,3340.6,3339.9,3.50135016]
[1641462490739,0.132394,3340.6,3339.9,2.00479]
[1641462493241,0.9187211,3340.0,3339.9,3.01449587]
[1641462493444,1.2811061,3340.0,3339.9,1.00970587]
[1641462494045,5.2906861,3340.0,3339.9,1.00970587]
[1641462494445,5.2906861,3340.0,3339.2,1.00970587]
[1641462494846,12.71,3339.9,3339.2,1.00970587]
[1641462495047,0.132394,3339.8,3339.2,1.00970587]
[1641462495446,4.791136,3339.7,3339.2,1.00970587]
[1641462495647,0.132394,3339.8,3339.2,1.14209987]
[1641462496048,4.9283011,3340.0,3339.2,0.132394]
[1641462496049,0.9187211,3339.4,3339.2,0.132394]
[1641462496348,0.9187211,3339.4,3339.3,0.076608]
[1641462496547,0.9187211,3339.4,3339.3,1.57340112]
[1641462496746,2.11e-05,3339.4,3339.3,1.57340112]
[1641462496946,1.22755825,3339.6,3339.3,1.57340112]
[1641462497146,1.22755825,3339.6,3339.4,0.132394]
[1641462497347,1.22755825,3339.6,3339.5,0.076608]
[1641462497848,4.00958,3340.0,3339.5,0.076608]
[1641462498446,4.00958,3340.0,3339.6,0.132394]
[1641462499048,1.22755825,3340.4,3339.7,1.5]
[1641462499247,1.22755825,3340.4,3339.8,0.132394]
[1641462499850,1.35995225,3340.4,3339.2,1.49686706]
[1641462500251,1.35995225,3340.4,3339.9,2.00479]
[1641462500454,0.132394,3340.4,3339.9,2.00479]
[1641462500852,0.132394,3340.4,3340.0,1.5]
[1641462501054,0.132394,3340.4,3339.9,3.63371504]
[1641462501462,0.63440377,3340.3,3339.9,3.63371504]
[1641462502063,0.132394,3340.2,3339.9,2.00479]
[1641462502261,0.229991,3340.1,3339.9,2.00479]
[1641462502761,0.132394,3340.0,3339.5,10.0]
[1641462503763,4.790777,3339.9,3339.5,10.0]
[1641462503962,0.132394,3339.8,3339.5,10.0]
[1641462504163,0.229991,3339.7,3339.5,10.0]
[1641462504364,5.020912,3339.7,3339.5,10.0]
[1641462504564,0.132394,3339.6,3339.5,10.0]
[1641462505565,0.7669597,3339.6,3339.5,10.0]
[1641462505763,0.7669597,3339.6,3339.5,7.96938975]
[1641462506365,1.99721255,3339.6,3339.5,7.96938975]
[1641462506764,3.49721255,3339.6,3338.3,1.34523773]
[1641462506964,1.5,3339.3,3338.3,1.34523773]
[1641462507164,12.71,3339.5,3338.3,1.34523773]
[1641462507366,4.79214,3339.2,3338.3,1.34523773]
[1641462507565,1.49768084,3339.3,3338.3,1.34523773]
[1641462507766,1.49768084,3339.3,3338.4,1.34523773]
[1641462507966,4.792212,3339.1,3338.4,1.34523773]
[1641462508168,2.00479,3338.9,3338.4,1.34523773]
[1641462508367,12.71,3338.8,3338.4,1.34523773]
[1641462508566,0.132394,3338.7,3338.4,1.34523773]
[1641462508768,0.229991,3338.6,3338.4,1.34523773]
[1641462509067,12.842394,3338.5,3338.4,1.34523773]
[1641462509569,0.132394,3338.5,3338.1,2.00479]
[1641462510568,0.132394,3338.5,3337.4,1.34523773]
[1641462510771,0.132394,3338.5,3337.3,1.33741458]
[1641462510772,1.5,3337.5,3337.3,1.33741458]
[1641462510972,14.439991,3337.4,3336.3,3.36352336]
[1641462511171,1.49887959,3336.6,3336.3,2.74152336]
[1641462511371,0.132394,3336.5,3336.3,2.74152336]
[1641462511570,4.92791,3336.5,3336.3,2.74152336]
[1641462512169,4.92791,3336.5,3336.0,4.20629834]
[1641462512170,14.94861461,3336.4,3336.0,4.20629834]
[1641462512369,0.132394,3336.3,3336.0,4.20629834]
[1641462512570,12.71,3336.2,3336.0,4.20629834]
[1641462512770,1.49940324,3336.1,3335.8,4.62692818]
[1641462512970,12.71,3336.0,3335.8,4.62692818]
[1641462513375,12.71,3335.8,3334.0,1.5]
[1641462513572,0.8322,3335.8,3334.3,1.5]
[1641462513772,4.797745,3335.7,3334.3,1.5]
[1641462513971,33.48538441,3335.7,3334.3,1.5]
[1641462514171,33.48538441,3335.7,3333.7,1.33527559]
[1641462514371,33.48538441,3335.7,3334.0,1.5]
[1641462514572,12.71,3335.6,3334.0,1.5]
[1641462515071,12.71,3335.4,3334.0,1.5]
[1641462515473,4.798032,3335.3,3333.8,1.5]
[1641462515673,4.798032,3335.3,3334.9,1.5]
[1641462515877,17.508176,3335.4,3334.1,1.5]
[1641462516075,4.797457,3335.3,3334.1,1.5]
[1641462516377,2.00479,3334.2,3333.1,16.21479]
[1641462516575,2.00479,3334.2,3334.1,1.5]
[1641462516773,2.00479,3334.2,3334.1,1.729991]
[1641462516976,2.00479,3334.2,3334.1,1.5]
[1641462517574,2.00479,3334.2,3334.1,1.729991]
[1641462518176,2.00479,3334.2,3334.1,1.5]
[1641462518875,2.00479,3334.2,3333.1,14.71479]
[1641462519077,2.00479,3334.2,3333.9,1.5]
[1641462519277,0.9054744,3335.5,3334.2,12.71]
[1641462519477,0.9054744,3335.5,3335.4,1.5]
[1641462519678,1.49940324,3336.1,3335.4,2.313]
[1641462520078,1.477,3336.3,3335.4,0.813]
[1641462520278,4.00958,3335.5,3335.4,0.945394]
[1641462520480,4.00958,3335.5,3335.4,2.445394]
[1641462520779,4.00958,3335.5,3335.4,2.313]
[1641462521181,4.00958,3335.5,3335.4,3.813]
[1641462521382,2.00479,3335.7,3335.4,4.042991]
[1641462521581,2.00479,3335.7,3335.6,3.0]
[1641462521779,2.00479,3335.7,3335.6,1.5]
[1641462521980,2.00479,3335.7,3335.6,14.21]
[1641462522181,2.00479,3335.7,3335.6,2.234781]
[1641462522385,2.00479,3337.0,3335.6,2.234781]
[1641462522582,2.00479,3337.0,3336.6,1.5]
[1641462522984,2.00479,3337.0,3336.6,0.132394]
[1641462523186,1.20342397,3337.5,3336.6,0.132394]
[1641462523883,1.20342397,3337.5,3335.9,1.4982059]
[1641462524082,1.5,3337.4,3335.7,1.49840794]
[1641462524282,1.5,3337.4,3335.6,2.00479]
[1641462524283,2.00479,3337.3,3336.5,2.00479]
[1641462524681,4.794869,3337.2,3336.5,2.00479]
[1641462524883,4.794869,3337.2,3335.6,2.00479]
[1641462525083,18.128469,3337.2,3335.6,2.00479]
[1641462525287,17.504869,3337.2,3335.6,2.00479]
[1641462525683,4.794869,3337.2,3335.9,1.5]
[1641462525883,2.00479,3337.3,3336.0,1.5]
[1641462526283,2.00479,3336.7,3336.0,1.5]
[1641462526484,2.00479,3337.3,3336.5,1.5]
[1641462526685,1.20342397,3337.7,3337.1,1.5]
[1641462526886,1.20342397,3337.4,3337.2,0.132394]
[1641462527085,1.20342397,3337.4,3337.3,0.229991]
[1641462527886,1.20342397,3337.4,3337.3,1.729991]
[1641462528086,0.20342397,3337.4,3337.3,1.729991]
[1641462528286,0.20342397,3337.4,3337.3,3.734781]
[1641462528488,0.20342397,3337.4,3337.3,2.234781]
[1641462528689,3.48179,3338.3,3337.3,2.234781]
[1641462528886,3.48179,3338.3,3337.2,1.30047588]
[1641462529487,4.15749,3338.3,3337.2,1.30047588]
[1641462529889,4.793648,3338.2,3337.2,1.30047588]
[1641462530188,4.793648,3338.2,3336.5,2.9980645]
[1641462530389,2.00479,3337.6,3336.9,2.00479]
[1641462530788,2.80449,3337.6,3336.5,1.4980645]
[1641462530988,1.49861453,3337.2,3335.3,1.49861453]
[1641462531589,1.49867293,3337.1,3335.2,2.99867293]
[1641462531793,1.49867293,3337.1,3335.6,1.5]
[1641462532291,2.00479,3336.6,3335.8,2.00479]
[1641462532494,2.00479,3336.6,3335.9,0.132394]
[1641462532791,2.00479,3336.6,3335.9,1.632394]
[1641462532992,2.00479,3336.6,3336.3,1.5]
[1641462533292,2.00479,3336.6,3336.4,0.229991]
[1641462533293,1.00479,3336.6,3336.4,0.229991]
[1641462533492,1.00479,3336.6,3335.5,2.00479]
[1641462533695,1.00479,3336.6,3335.5,14.71479]
[1641462533893,1.00479,3336.6,3335.5,2.00479]
[1641462534294,1.00479,3336.6,3336.1,1.49812959]
[1641462534495,2.00479,3337.3,3336.2,12.842394]
[1641462534894,2.00479,3337.3,3336.2,0.132394]
[1641462535394,2.00479,3337.3,3336.2,12.842394]
[1641462535594,2.00479,3337.3,3336.2,0.132394]
[1641462536395,3.50479,3337.3,3336.4,2.00479]
[1641462536595,2.00479,3337.3,3336.4,2.00479]
[1641462536795,1.5,3337.2,3336.4,2.00479]
[1641462536996,0.132394,3337.1,3336.4,2.00479]
[1641462537396,0.132394,3337.1,3336.4,2.137184]
[1641462537796,1.5,3337.2,3336.4,2.137184]
[1641462537999,0.132394,3337.0,3336.5,0.132394]
[1641462538196,2.00479,3337.3,3336.5,0.132394]
[1641462538396,0.632394,3337.0,3335.6,0.867606]
[1641462538797,2.00479,3337.3,3336.1,0.867606]
[1641462538997,2.00479,3337.3,3335.5,2.00479]
[1641462538998,2.00479,3337.3,3336.5,1.49794557]
[1641462539197,0.132394,3337.2,3336.5,1.49794557]
[1641462539700,0.132394,3337.2,3335.9,1.49823957]
[1641462539897,0.132394,3337.2,3335.6,0.93841751]
[1641462540099,0.132394,3337.2,3335.7,12.71]
[1641462540297,2.00479,3336.8,3336.0,3.50296223]
[1641462540498,2.00479,3336.8,3336.2,1.49808919]
[1641462540998,2.00479,3336.8,3336.3,0.132394]
[1641462541199,2.40656631,3338.1,3336.5,0.19072]
[1641462541403,1.5,3337.8,3336.4,0.19072]
[1641462541603,0.90847712,3338.1,3336.5,12.71]
[1641462541899,0.90847712,3338.1,3337.2,1.49763374]
[1641462542102,0.40147712,3338.4,3337.3,12.71]
[1641462542299,0.40147712,3338.4,3337.9,2.00479]
[1641462542499,0.40147712,3338.4,3338.0,1.62969586]
[1641462542702,1.50361847,3338.9,3338.0,0.132394]
[1641462543299,1.50361847,3338.9,3338.2,1.4972234]
[1641462543599,1.50361847,3338.9,3338.3,0.132394]
[1641462543901,2.00479,3339.4,3338.4,1.0]
[1641462544100,1.5,3339.7,3338.4,1.0]
[1641462544300,1.5,3339.7,3339.2,2.00479]
[1641462544499,0.132394,3339.6,3339.2,2.00479]
[1641462544900,1.5,3339.4,3339.2,2.00479]
[1641462545100,1.5,3339.4,3338.8,2.00479]
[1641462545101,0.132394,3339.3,3338.8,2.00479]
[1641462546504,0.132394,3339.3,3338.8,2.137184]
[1641462546905,0.2954465,3338.7,3338.4,1.0]
[1641462547105,1.5,3338.5,3338.4,1.0]
[1641462547306,1.5,3338.5,3336.9,1.49777954]
[1641462547506,2.5273465,3338.7,3336.9,1.49777954]
[1641462547706,2.5273465,3338.7,3337.0,12.71]
[1641462547909,1.5,3338.5,3336.0,1.22779147]
[1641462548310,2.00479,3338.4,3337.6,2.00479]
[1641462548509,1.632394,3338.3,3337.6,2.00479]
[1641462548809,1.137184,3338.4,3337.6,2.00479]
[1641462549010,1.137184,3338.4,3337.7,0.132394]
[1641462551415,1.269578,3338.4,3337.8,0.1907]
[1641462551614,1.5,3338.1,3337.8,0.1907]
[1641462551817,1.269578,3338.4,3337.9,0.229991]
[1641462552717,2.769578,3338.4,3337.9,0.229991]
[1641462553722,1.23500945,3338.1,3337.8,0.1907]
[1641462553923,1.5,3337.9,3337.8,0.1907]
[1641462554123,1.5,3337.9,3336.2,1.34856841]
[1641462554124,3.0,3337.9,3336.2,1.34856841]
[1641462554325,1.5,3337.1,3336.4,2.00479]
[1641462554524,2.00479,3337.2,3336.4,2.00479]
[1641462554525,0.132394,3337.0,3336.4,2.137184]
[1641462554725,1.5,3336.5,3336.2,1.34856841]
[1641462555225,1.5,3336.4,3336.3,0.229991]
[1641462555427,1.5,3336.4,3336.2,1.34856841]
[1641462555626,1.5,3336.4,3336.1,2.137184]
[1641462555826,1.5,3336.2,3336.1,2.137184]
[1641462556026,1.5,3336.4,3336.1,2.367175]
[1641462556426,1.5,3336.4,3336.1,2.234781]
[1641462556627,1.5,3336.4,3335.7,0.6948]
[1641462556628,1.5,3336.2,3335.7,0.6948]
[1641462556831,1.5,3335.8,3335.7,0.6948]
[1641462557227,1.5,3335.8,3335.5,50.0]
[1641462557427,1.5,3335.7,3335.5,50.0]
[1641462557627,1.5,3335.7,3335.6,0.229991]
[1641462557827,1.5,3335.7,3335.5,50.0]
[1641462558429,1.5,3335.7,3335.6,0.229991]
[1641462558630,1.5,3335.7,3335.5,50.132394]
[1641462559433,1.5,3335.7,3335.5,50.0]
[1641462559830,0.132394,3335.6,3335.5,50.0]
[1641462560431,2.137184,3335.6,3335.5,50.0]
[1641462560828,2.137184,3335.6,3334.3,1.34856841]
[1641462561029,1.5,3334.5,3334.3,1.34856841]
[1641462561231,4.48035229,3335.6,3334.3,1.48096241]
[1641462561431,5.63535229,3335.6,3334.3,0.132394]
[1641462561832,4.797673,3335.5,3334.3,0.132394]
[1641462562032,10.43302529,3335.6,3334.3,0.132394]
[1641462562430,2.00479,3335.2,3334.1,2.00479]
[1641462563130,1.5,3334.9,3334.1,2.00479]
[1641462563330,0.132394,3334.8,3334.1,2.00479]
[1641462563730,0.132394,3334.8,3333.8,2.00479]
[1641462564235,1.05725019,3334.8,3333.8,2.00479]
[1641462564433,2.00479,3334.2,3333.4,3.0171129]
[1641462564633,0.5653,3334.2,3333.5,0.132394]
[1641462564832,1.5,3333.8,3333.4,3.0171129]
[1641462565032,1.50023329,3333.5,3333.1,3.35335841]
[1641462565232,0.132394,3333.4,3333.1,3.35335841]
[1641462566031,0.132394,3333.4,3333.1,2.00479]
[1641462566631,0.132394,3333.4,3332.9,1.34856841]
[1641462567235,2.00479,3334.5,3333.3,1.5]
[1641462567436,4.21023765,3334.9,3333.3,1.5]
[1641462567437,1.23369276,3334.0,3333.6,1.5]
[1641462567635,1.23369276,3334.0,3333.7,0.132394]
[1641462567834,1.23369276,3334.0,3333.8,0.229991]
[1641462568034,1.54211595,3334.3,3333.8,0.229991]
[1641462568035,1.54211595,3334.3,3333.9,1.49902114]
[1641462568236,1.54211595,3334.3,3334.0,0.132394]
[1641462568435,1.54211595,3334.3,3334.2,2.00479]
[1641462568937,5.77653794,3335.3,3334.2,2.00479]
[1641462568938,1.54211595,3335.2,3334.2,2.00479]
[1641462569438,14.25211595,3335.2,3334.2,2.00479]
[1641462569638,1.49952915,3334.9,3334.2,2.00479]
[1641462569839,0.132394,3334.8,3334.2,2.00479]
[1641462570043,12.71,3334.7,3334.2,2.00479]
[1641462570238,0.132394,3334.6,3334.2,2.00479]
[1641462570639,5.0,3334.3,3334.2,7.00479]
[1641462571240,5.0,3334.3,3333.1,0.1074669]
[1641462571439,5.0,3334.3,3332.3,32.6762]
[1641462571639,5.0,3334.3,3332.4,12.71]
[1641462571839,2.00479,3334.9,3333.5,12.71]
[1641462572139,5.0,3334.3,3334.2,5.0]
[1641462572342,3.0973,3334.3,3334.2,5.229991]
[1641462572539,3.0973,3334.3,3334.2,19.944781]
[1641462572739,4.26783877,3334.9,3334.2,19.944781]
[1641462572938,4.26783877,3334.9,3334.2,21.17732344]
[1641462573140,2.00479,3334.9,3334.2,8.46732344]
[1641462573538,2.00479,3334.9,3334.2,7.234781]
[1641462573740,2.00479,3334.9,3334.2,19.944781]
[1641462575642,2.00479,3335.3,3334.2,7.234781]
[1641462576440,2.00479,3335.3,3334.8,2.00479]